fUST/lending_fUST_20241108
["ID","MTS","AMOUNT","RATE_DAILY","PERIOD"]
[341657440,1731067845059,-152.058206,0.0002535,7]
[341657441,1731067845068,-152.058206,0.0002535,7]
[341657442,1731067845078,-151.0,0.0002535,7]
[341657443,1731067845087,-151.0,0.0002535,7]
[341657444,1731067845096,-151.0,0.0002535,7]
[341657445,1731067845107,-406.307474,0.0002535,7]
[341657446,1731067845118,-406.307474,0.0002535,7]
[341657447,1731067845127,-154.544194,0.0002535,7]
[341657448,1731067845136,-154.544194,0.0002535,7]
[341657449,1731067845146,-538.352093,0.0002535,7]
[341657450,1731067845156,-3000.0,0.0002536,2]
[341657451,1731067845166,-3000.0,0.0002536,2]
[341657452,1731067845176,-3000.0,0.0002537,2]
[341657453,1731067845186,-3000.0,0.0002537,2]
[341657454,1731067845195,-5594.294763,0.0002538,2]
[341657455,1731067845205,-3000.0,0.0002538,2]
[341657456,1731067845215,-3000.0,0.0002539,2]
[341657457,1731067845224,-3000.0,0.000254,2]
[341657458,1731067845233,-3000.0,0.0002541,2]
[341657459,1731067845243,-3000.0,0.0002542,2]
[341657460,1731067845253,-3000.0,0.0002543,2]
[341657461,1731067845262,-500.0,0.00025438,9]
[341657462,1731067845272,-3000.0,0.0002544,2]
[341657463,1731067845282,-3000.0,0.0002545,2]
[341657464,1731067845291,-3000.0,0.0002546,2]
[341657465,1731067845300,-3000.0,0.0002547,2]
[341657466,1731067845309,-569.36,0.00025479,2]
[341657467,1731067845318,-2531.09,0.00025479,2]
[341657468,1731067845327,-500.0,0.00025479,2]
[341657469,1731067845337,-4157.84,0.00025479,2]
[341657470,1731067845347,-526.89,0.00025479,2]
[341657471,1731067845356,-500.0,0.00025479,2]
[341657472,1731067845365,-3706.66,0.00025479,2]
[341657473,1731067845375,-500.0,0.00025479,2]
[341657474,1731067845385,-151.0,0.00025479,7]
[341657475,1731067845395,-1229.1,0.00025479,2]
[341657476,1731067845404,-152.058206,0.00025479,7]
[341657477,1731067845414,-152.058206,0.00025479,7]
[341657478,1731067845423,-899.35,0.00025479,2]
[341657479,1731067845432,-151.0,0.00025479,7]
[341657480,1731067845442,-151.0,0.00025479,7]
[341657481,1731067845452,-500.0,0.00025479,2]
[341657482,1731067845463,-151.0,0.00025479,7]
[341657483,1731067845474,-406.307474,0.00025479,7]
[341657484,1731067845484,-406.307474,0.00025479,7]
[341657485,1731067845493,-849.91,0.00025479,2]
[341657486,1731067845503,-154.544194,0.00025479,7]
[341657487,1731067845512,-154.544194,0.00025479,7]
[341657488,1731067845522,-538.352093,0.00025479,7]
[341657489,1731067845531,-3000.0,0.0002548,2]
[341657490,1731067845541,-3000.0,0.0002549,2]
[341657491,1731067845550,-3000.0,0.000255,2]
[341657492,1731067845560,-302.84859387,0.000255,2]
[341657493,1731067845570,-3000.0,0.0002551,2]
[341657494,1731067845580,-3000.0,0.0002552,2]
[341657495,1731067845590,-151.535,0.0002552,2]
[341657496,1731067845600,-3000.0,0.0002553,2]
[341657497,1731067845611,-3000.0,0.0002554,2]
[341657498,1731067845620,-3000.0,0.0002555,2]
[341657499,1731067845630,-3000.0,0.0002556,2]
[341657500,1731067845639,-3000.0,0.0002557,2]
[341657501,1731067845648,-3000.0,0.0002558,2]
[341657502,1731067845658,-3000.0,0.0002559,2]
[341657503,1731067845667,-3000.0,0.000256,2]
[341657504,1731067845677,-151.0,0.00025605,3]
[341657505,1731067845686,-3000.0,0.0002561,2]
[341657506,1731067845696,-3000.0,0.0002562,2]
[341657507,1731067845705,-3000.0,0.0002563,2]
[341657509,1731067845715,-3000.0,0.0002564,2]
[341657511,1731067845724,-1000.0,0.00025646,2]
[341657512,1731067845733,-1000.0,0.00025646,2]
[341657513,1731067845742,-3000.0,0.0002565,2]
[341657514,1731067845751,-151.0,0.0002565,7]
[341657515,1731067845761,-152.058206,0.0002565,7]
[341657516,1731067845770,-152.058206,0.0002565,7]
[341657517,1731067845784,-151.0,0.0002565,7]
[341657518,1731067845794,-190.46569,0.0002565,7]
[341657519,1731067845803,-151.0,0.0002565,7]
[341657520,1731067845813,-406.307474,0.0002565,7]
[341657521,1731067845824,-406.307474,0.0002565,7]
[341657522,1731067845833,-154.544194,0.0002565,7]
[341657523,1731067845843,-154.544194,0.0002565,7]
[341657524,1731067845853,-538.352093,0.0002565,7]
[341657525,1731067845863,-3000.0,0.0002566,2]
[341657526,1731067845874,-5718.223991,0.0002567,2]
[341657527,1731067845883,-302.84859387,0.0002575,2]
[341657528,1731067845893,-569.36,0.00025753,2]
[341657529,1731067845903,-2531.09,0.00025753,2]
[341657530,1731067845912,-500.0,0.00025753,2]
[341657531,1731067845922,-4157.84,0.00025753,2]
[341657532,1731067845932,-526.89,0.00025753,2]
[341657533,1731067845942,-462.88681199,0.00025753,2]
[341657534,1731067845953,-3706.66,0.00025753,2]
[341657535,1731067845965,-500.0,0.00025753,2]
[341657537,1731067845975,-1229.1,0.00025753,2]
[341657538,1731067845988,-899.35,0.00025753,2]
[341657539,1731067845998,-500.0,0.00025753,2]
[341657540,1731067846008,-849.91,0.00025753,2]
[341657541,1731067846017,-353.0,0.00025775,2]
[341657542,1731067846027,-587.0,0.00025884,2]
[341657543,1731067846037,-151.0,0.00025954,4]
[341657544,1731067846047,-302.84859387,0.00026,2]
[341657545,1731067846058,-253.24726,0.00026019,2]
[341657546,1731067846068,-161.632965,0.00026019,2]
[341657547,1731067846078,-169.334697,0.00026019,2]
[341657548,1731067846088,-855.117903,0.00026019,2]
[341657549,1731067846099,-190.003255,0.00026019,2]
[341657550,1731067846109,-190.003253,0.00026019,2]
[341657551,1731067846120,-165.566391,0.00026019,2]
[341657552,1731067846131,-501.390813,0.00026019,2]
[341657553,1731067846142,-163.371282,0.00026019,2]
[341657554,1731067846153,-569.36,0.00026027,2]
[341657555,1731067846164,-2531.09,0.00026027,2]
[341657556,1731067846175,-500.0,0.00026027,2]
[341657557,1731067846186,-4157.84,0.00026027,2]
[341657558,1731067846196,-526.89,0.00026027,2]
[341657559,1731067846206,-3706.66,0.00026027,2]
[341657560,1731067846217,-500.0,0.00026027,2]
[341657561,1731067846228,-1229.1,0.00026027,2]
[341657562,1731067846238,-899.35,0.00026027,2]
[341657563,1731067846248,-500.0,0.00026027,2]
[341657564,1731067846259,-849.91,0.00026027,2]
[341657565,1731067846269,-3200.0,0.00026053,2]
[341657566,1731067846278,-454.27289081,0.0002625,4]
[341657567,1731067846288,-569.36,0.00026301,2]
[341657568,1731067846298,-2531.09,0.00026301,2]
[341657569,1731067846308,-500.0,0.00026301,2]
[341657570,1731067846318,-3093.61308947,0.00026301,2]
[341657571,1731067846402,-1064.22691053,0.00026301,2]
[341657572,1731067846412,-526.89,0.00026301,2]
[341657573,1731067846423,-3706.66,0.00026301,2]
[341657574,1731067846434,-500.0,0.00026301,2]
[341657575,1731067846445,-151.0,0.00026301,7]
[341657576,1731067846455,-1229.1,0.00026301,2]
[341657577,1731067846465,-152.058206,0.00026301,7]
[341657578,1731067846476,-152.058206,0.00026301,7]
[341657579,1731067846486,-899.35,0.00026301,2]
[341657580,1731067846496,-151.0,0.00026301,7]
[341657581,1731067846508,-500.0,0.00026301,2]
[341657582,1731067846518,-151.0,0.00026301,7]
[341657583,1731067846529,-406.307474,0.00026301,7]
[341657584,1731067846539,-406.307474,0.00026301,7]
[341657585,1731067846550,-849.91,0.00026301,2]
[341657586,1731067846560,-154.544194,0.00026301,7]
[341657587,1731067846571,-154.544194,0.00026301,7]
[341657588,1731067846581,-538.352093,0.00026301,7]
[341657589,1731067846591,-151.0,0.00026303,4]
[341657590,1731067846602,-500.0,0.00026322,2]
[341657591,1731067846612,-500.0,0.00026322,2]
[341657592,1731067846621,-500.0,0.00026322,2]
[341657593,1731067846632,-253.24726,0.00026344,2]
[341657594,1731067846643,-855.117903,0.00026344,2]
[341657595,1731067846654,-501.390813,0.00026344,2]
[341657596,1731067846664,-161.632965,0.00026452,2]
[341657598,1731067846674,-454.27289081,0.000265,4]
[341657599,1731067846684,-417.0,0.00026518,2]
[341657600,1731067846693,-569.36,0.00026575,2]
[341657601,1731067846703,-2531.09,0.00026575,2]
[341657602,1731067846714,-500.0,0.00026575,2]
[341657604,1731067846723,-4157.84,0.00026575,2]
[341657605,1731067846733,-526.89,0.00026575,2]
[341657606,1731067846743,-3706.66,0.00026575,2]
[341657607,1731067846752,-204.56868922,0.00026575,2]
[341657608,1731067846762,-1229.1,0.00026575,2]
[341657609,1731067846775,-899.35,0.00026575,2]
[341657610,1731067846784,-500.0,0.00026575,2]
[341657611,1731067846794,-849.91,0.00026575,2]
[341657612,1731067846803,-278750.3608977,0.000266,2]
[341657613,1731067846814,-151.0,0.00026651,4]
[341657614,1731067846823,-151.0,0.00026651,4]
[341657615,1731067846833,-253.24726,0.00026669,2]
[341657616,1731067846842,-855.117903,0.00026669,2]
[341657617,1731067846853,-501.390813,0.00026669,2]
[341657618,1731067846864,-501.29902778,0.00026738,2]
[341657619,1731067846874,-504.2691716,0.00026738,2]
[341657620,1731067846883,-519.40572745,0.0002675,4]
[341657621,1731067846892,-569.36,0.00026849,2]
[341657622,1731067846901,-2531.09,0.00026849,2]
[341657623,1731067846910,-600.0,0.00026849,2]
[341657624,1731067846920,-500.0,0.00026849,2]
[341657625,1731067846929,-4157.84,0.00026849,2]
[341657626,1731067846939,-526.89,0.00026849,2]
[341657627,1731067846948,-3706.66,0.00026849,2]
[341657628,1731067846959,-1229.1,0.00026849,2]
[341657629,1731067846968,-899.35,0.00026849,2]
[341657630,1731067846978,-500.0,0.00026849,2]
[341657631,1731067846987,-849.91,0.00026849,2]
[341657632,1731067846996,-161.632965,0.00026886,2]
[341657633,1731067847006,-150.0,0.00026887,2]
[341657634,1731067847015,-152.058206,0.00026887,7]
[341657635,1731067847025,-152.058206,0.00026887,7]
[341657636,1731067847035,-151.0,0.00026887,7]
[341657637,1731067847044,-406.307474,0.00026887,7]
[341657638,1731067847055,-406.307474,0.00026887,7]
[341657639,1731067847065,-538.352093,0.00026887,7]
[341657640,1731067847075,-200.0,0.0002691,17]
[341657641,1731067847085,-253.24726,0.00026994,2]
[341657642,1731067847094,-855.117903,0.00026994,2]
[341657643,1731067847105,-501.390813,0.00026994,2]
[341657644,1731067847115,-617.55,0.00027,2]
[341657645,1731067847126,-1000.0,0.00027,27]
[341657646,1731067847136,-394.71,0.00027,14]
[341657647,1731067847146,-63730.41242672,0.00027,2]
[341657648,1731067847156,-151.0,0.00027,4]
[341657649,1731067847166,-151.0,0.00027,4]
[341657650,1731067847176,-152.058206,0.00027,7]
[341657651,1731067847185,-152.058206,0.00027,7]
[341657652,1731067847194,-151.0,0.00027,7]
[341657653,1731067847203,-151.0,0.00027,7]
[341657654,1731067847214,-406.307474,0.00027,7]
[341657655,1731067847224,-406.307474,0.00027,7]
[341657656,1731067847233,-154.544194,0.00027,7]
[341657657,1731067847242,-154.544194,0.00027,7]
[341657658,1731067847251,-468.02,0.00027,2]
[341657659,1731067847261,-538.352093,0.00027,7]
[341657660,1731067847271,-569.36,0.00027123,2]
[341657661,1731067847280,-2531.09,0.00027123,2]
[341657662,1731067847290,-500.0,0.00027123,2]
[341657663,1731067847299,-4157.84,0.00027123,2]
[341657664,1731067847309,-526.89,0.00027123,2]
[341657665,1731067847318,-3706.66,0.00027123,2]
[341657666,1731067847327,-1229.1,0.00027123,2]
[341657667,1731067847337,-899.35,0.00027123,2]
[341657668,1731067847346,-500.0,0.00027123,2]
[341657669,1731067847355,-849.91,0.00027123,2]
[341657670,1731067847365,-1000.0,0.000272,4]
[341657671,1731067847374,-1000.0,0.000272,5]
[341657672,1731067847383,-314.44,0.000272,14]
[341657673,1731067847393,-2110.38,0.000272,14]
[341657674,1731067847479,-331.038958,0.0002732,2]
[341657675,1731067847501,-224.279347,0.0002732,2]
[341657676,1731067847512,-207.267967,0.0002732,2]
[341657677,1731067847522,-253.24726,0.0002732,2]
[341657678,1731067847532,-855.117903,0.0002732,2]
[341657679,1731067847542,-501.390813,0.0002732,2]
[341657680,1731067847554,-190.003255,0.0002732,2]
[341657681,1731067847564,-161.632965,0.0002732,2]
[341657682,1731067847573,-506.8976225,0.00027373,2]
[341657683,1731067847583,-500.0,0.00027373,2]
[341657684,1731067847592,-500.0,0.00027373,2]
[341657685,1731067847603,-500.0,0.00027373,2]
[341657686,1731067847613,-353.0,0.00027386,2]
[341657687,1731067847623,-500.0,0.00027397,2]
[341657688,1731067847632,-500.0,0.00027397,2]
[341657689,1731067847642,-518.84298599,0.00027397,2]
[341657690,1731067847652,-569.36,0.00027397,2]
[341657691,1731067847662,-1000.0,0.00027397,2]
[341657692,1731067847671,-856.68562342,0.00027397,2]
[341657693,1731067847680,-2531.09,0.00027397,2]
[341657694,1731067847690,-500.0,0.00027397,2]
[341657695,1731067847698,-4157.84,0.00027397,2]
[341657696,1731067847706,-526.89,0.00027397,2]
[341657697,1731067847715,-3706.66,0.00027397,2]
[341657698,1731067847724,-1229.1,0.00027397,2]
[341657699,1731067847732,-152.058206,0.00027397,7]
[341657700,1731067847741,-152.058206,0.00027397,7]
[341657701,1731067847750,-152.058206,0.00027397,7]
[341657702,1731067847759,-152.058212,0.00027397,7]
[341657703,1731067847768,-899.35,0.00027397,2]
[341657704,1731067847779,-151.0,0.00027397,7]
[341657705,1731067847788,-151.0,0.00027397,7]
[341657706,1731067847798,-500.0,0.00027397,2]
[341657707,1731067847807,-151.0,0.00027397,7]
[341657708,1731067847818,-406.307474,0.00027397,7]
[341657709,1731067847828,-406.307474,0.00027397,7]
[341657710,1731067847838,-406.307474,0.00027397,7]
[341657711,1731067847850,-406.307482,0.00027397,7]
[341657712,1731067847860,-849.91,0.00027397,2]
[341657713,1731067847869,-154.544194,0.00027397,7]
[341657714,1731067847879,-154.544185,0.00027397,7]
[341657715,1731067847889,-1000.0,0.00027397,2]
[341657716,1731067847898,-1000.0,0.00027397,2]
[341657717,1731067847908,-1000.0,0.00027397,2]
[341657718,1731067847918,-1079.41503591,0.00027397,2]
[341657719,1731067847927,-500.0,0.00027397,2]
[341657720,1731067847936,-500.0,0.00027397,2]
[341657721,1731067847946,-500.0,0.00027397,2]
[341657722,1731067847955,-500.0,0.00027397,2]
[341657723,1731067847966,-566.1296564,0.00027397,2]
[341657724,1731067847976,-500.0,0.00027397,2]
[341657725,1731067847985,-500.0,0.00027397,2]
[341657726,1731067847995,-500.0,0.00027397,2]
[341657727,1731067848005,-500.0,0.00027397,2]
[341657728,1731067848015,-500.0,0.00027397,2]
[341657729,1731067848024,-500.0,0.00027397,2]
[341657730,1731067848034,-500.0,0.00027397,2]
[341657731,1731067848044,-500.0,0.00027397,2]
[341657732,1731067848053,-500.0,0.00027397,2]
[341657733,1731067848063,-500.0,0.00027397,2]
[341657734,1731067848072,-500.0,0.00027397,2]
[341657735,1731067848082,-500.0,0.00027397,2]
[341657736,1731067848091,-500.0,0.00027397,2]
[341657737,1731067848101,-500.0,0.00027397,2]
[341657738,1731067848110,-500.0,0.00027397,2]
[341657739,1731067848120,-500.0,0.00027397,2]
[341657740,1731067848131,-500.0,0.00027397,2]
[341657741,1731067848141,-500.0,0.00027397,2]
[341657742,1731067848151,-500.0,0.00027397,2]
[341657743,1731067848161,-500.0,0.00027397,2]
[341657744,1731067848171,-500.0,0.00027397,2]
[341657745,1731067848181,-500.0,0.00027397,2]
[341657746,1731067848190,-500.0,0.00027397,2]
[341657747,1731067848200,-500.0,0.00027397,2]
[341657748,1731067848211,-154.98481717,0.00027397,2]
[341657749,1731067849514,-538.352093,0.00025,7]
[341657750,1731067849524,-538.352093,0.0002525,7]
[341657751,1731067849533,-345.01518283,0.00027397,2]
[341657752,1731067849542,-500.0,0.00027397,2]
[341657753,1731067849551,-500.0,0.00027397,2]
[341657754,1731067849560,-500.0,0.00027397,2]
[341657755,1731067849569,-500.0,0.00027397,2]
[341657756,1731067849578,-500.0,0.00027397,2]
[341657757,1731067849587,-500.0,0.00027397,2]
[341657758,1731067849597,-500.0,0.00027397,2]
[341657759,1731067849607,-500.0,0.00027397,2]
[341657760,1731067849616,-500.0,0.00027397,2]
[341657761,1731067849626,-370.28707624,0.00027397,2]
[341657762,1731067849635,-500.0,0.00027397,2]
[341657763,1731067849644,-500.0,0.00027397,2]
[341657764,1731067849653,-500.0,0.00027397,2]
[341657765,1731067849663,-500.0,0.00027397,2]
[341657766,1731067849672,-500.0,0.00027397,2]
[341657767,1731067849682,-538.352093,0.00027397,7]
[341657768,1731067849692,-538.352093,0.00027397,7]
[341657769,1731067849701,-432.37393813,0.00027397,2]
[341657770,1731067849711,-151.0,0.00027397,7]
[341657771,1731067849726,-151.0,0.00027397,7]
[341657772,1731067849735,-151.0,0.00027397,2]
[341657773,1731067849744,-155.830274,0.00027397,2]
[341657774,1731067849753,-984.6307978,0.000274,30]
[341657775,1731067849849,-500.0,0.00021917,2]
[341657776,1731067849861,-150.7,0.00022191,2]
[341657777,1731067849872,-1000.0,0.00022868,2]
[341657778,1731067849881,-538.352093,0.0002535,7]
[341657779,1731067849892,-538.352093,0.00025479,7]
[341657780,1731067849901,-538.352093,0.0002565,7]
[341657781,1731067849910,-538.352093,0.00026301,7]
[341657782,1731067850000,-538.352093,0.00026887,7]
[341657783,1731067850010,-538.352093,0.00027,7]
[341657784,1731067850019,-538.352093,0.00027397,7]
[341657785,1731067850028,-9172.4492022,0.000274,30]
[341657786,1731067850037,-9504.5,0.000274,14]
[341657787,1731067850047,-5161.80404806,0.000275,2]
[341657788,1731067850056,-353.0,0.00027616,2]
[341657789,1731067850066,-2531.09,0.00027671,2]
[341657790,1731067850075,-500.0,0.00027671,2]
[341657791,1731067850084,-4157.84,0.00027671,2]
[341657792,1731067850093,-526.89,0.00027671,2]
[341657793,1731067850102,-3706.66,0.00027671,2]
[341657794,1731067850111,-1229.1,0.00027671,2]
[341657795,1731067850121,-899.35,0.00027671,2]
[341657796,1731067850132,-500.0,0.00027671,2]
[341657797,1731067850141,-849.91,0.00027671,2]
[341657798,1731067850151,-1000.0,0.00027692,5]
[341657799,1731067850161,-791.44986977,0.00027692,5]
[341657800,1731067850171,-1000.0,0.00027692,5]
[341657801,1731067850180,-160.873864,0.00027735,2]
[341657802,1731067850190,-2531.09,0.00027945,2]
[341657803,1731067850200,-449.67593394,0.00027945,2]
[341657804,1731067850211,-4157.84,0.00027945,2]
[341657805,1731067850221,-526.89,0.00027945,2]
[341657806,1731067850231,-3706.66,0.00027945,2]
[341657807,1731067850240,-1229.1,0.00027945,2]
[341657808,1731067850249,-899.35,0.00027945,2]
[341657809,1731067850259,-495.94988444,0.00027945,2]
[341657810,1731067850268,-849.91,0.00027945,2]
[341657811,1731067850278,-302.15154288,0.00028,2]
[341657812,1731067850287,-572.0,0.0002813,2]
[341657813,1731067850296,-1500.0,0.00028151,5]
[341657814,1731067850306,-2110.38,0.000282,30]
[341657815,1731067850316,-2531.09925049,0.00028219,2]
[341657816,1731067850326,-4157.90569541,0.00028219,2]
[341657817,1731067850335,-527.02562947,0.00028219,2]
[341657818,1731067850344,-3706.75215635,0.00028219,2]
[341657819,1731067850353,-1229.32007437,0.00028219,2]
[341657820,1731067850363,-899.48503475,0.00028219,2]
[341657821,1731067850372,-849.93116462,0.00028219,2]
[341657822,1731067850382,-394.71,0.000283,14]
[341657823,1731067850392,-314.44,0.000284,14]
[341657824,1731067850401,-500.0,0.00028525,7]
[341657825,1731067850410,-10157.08,0.000286,30]
[341657826,1731067850420,-9504.5,0.000286,14]
[341657827,1731067850429,-1000.0,0.00028742,5]
[341657828,1731067850438,-504.72780473,0.00028742,5]
[341657829,1731067850448,-1000.0,0.00028742,5]
[341657830,1731067850457,-200.0,0.0002876,21]
[341657831,1731067850468,-500.0,0.00028767,2]
[341657832,1731067850478,-1000.0,0.000288,6]
[341657833,1731067850487,-1000.0,0.000288,7]
[341657834,1731067850496,-18158.43324045,0.00028888,2]
[341657835,1731067850506,-5000.0,0.00028927,30]
[341657836,1731067850515,-353.0,0.00028997,2]
[341657837,1731067850525,-1000.0,0.00029,29]
[341657838,1731067850535,-1604.07240521,0.00029,2]
[341657839,1731067850544,-859.98702931,0.00029,2]
[341657840,1731067850553,-1333.0,0.00029041,120]
[341657841,1731067850562,-2110.38,0.000291,30]
[341657842,1731067850572,-150.8792,0.000292,2]
[341657843,1731067850582,-1000.0,0.000292,8]
[341657844,1731067850591,-1473.16486682,0.00029209,2]
[341657845,1731067850600,-394.71,0.000294,14]
[341657846,1731067850610,-160.0,0.00029499,10]
[341657847,1731067850619,-5851.65825173,0.000295,2]
[341657848,1731067850630,-3419.75830989,0.000295,2]
[341657849,1731067850643,-19469.13391056,0.000295,2]
[341657850,1731067850654,-1259.44952782,0.000295,2]
[341657851,1731067850663,-6499.80598278,0.000295,2]
[341657852,1731067850824,-787.4691757,0.000295,2]
[341657853,1731067850836,-272.05466466,0.000295,2]
[341657854,1731067850878,-1064.61524037,0.00024099,2]
[341657855,1731067850887,-7.85116002,0.0002534,10]
[341657856,1731067850898,-2740.76883998,0.0002534,10]
[341657857,1731067850907,-538.352098,0.00027397,7]
[341657858,1731067850916,-4325.87906202,0.000295,2]
[341657859,1731067850927,-8644.7045971,0.000295,2]
[341657860,1731067850949,-2027.257902,0.000295,2]
[341657861,1731067853756,-458.85804746,0.000295,2]
[341657862,1731067853765,-314.44,0.000295,14]
[341657863,1731067853776,-5000.0,0.00029514,30]
[341657864,1731067853788,-500.0,0.00029535,2]
[341657865,1731067853797,-257.40443719,0.00029575,2]
[341657866,1731067853807,-600.0,0.00029589,4]
[341657867,1731067853816,-160.0,0.00029681,5]
[341657868,1731067853826,-160.0,0.00029699,10]
[341657869,1731067853834,-29214.21266635,0.000297,2]
[341657872,1731067986815,694.44444444,0.00020843,2]
[341657873,1731067990897,217.53,0.00019991,2]
[341659025,1731068234336,169.640935,0.00013973,2]
[341659029,1731068599761,694.44444444,0.00020843,2]
[341659032,1731068832136,-500.0,0.00021917,2]
[341659033,1731068832161,-500.0,0.00021917,2]
[341659034,1731068832182,-500.0,0.00021917,2]
[341659035,1731068832204,-500.0,0.00021917,2]
[341659036,1731068832226,-500.0,0.00021917,2]
[341659037,1731068832249,-500.0,0.00021917,2]
[341659038,1731068832270,-594.98401866,0.00021917,2]
[341659039,1731068832293,-500.0,0.00021917,2]
[341659040,1731068832314,-500.0,0.00021917,2]
[341659041,1731068832335,-272.09220424,0.00021917,2]
[341659042,1731068832355,-500.0,0.00021917,2]
[341659043,1731068832376,-500.0,0.00021917,2]
[341659044,1731068832398,-500.0,0.00021917,2]
[341659045,1731068832419,-500.0,0.00021917,2]
[341659046,1731068832441,-500.0,0.00021917,2]
[341659047,1731068832462,-500.0,0.00021917,2]
[341659048,1731068832483,-344.17252419,0.00021917,2]
[341659049,1731068832505,-500.0,0.00021917,2]
[341659050,1731068832531,-500.0,0.00021917,2]
[341659051,1731068832554,-803.21,0.00021917,2]
[341659052,1731068832576,-500.0,0.00021917,2]
[341659053,1731068832600,-508.84434533,0.00021917,2]
[341659054,1731068832624,-500.0,0.00021917,2]
[341659055,1731068832648,-500.0,0.00021917,2]
[341659056,1731068832674,-500.0,0.00021917,2]
[341659057,1731068832698,-500.0,0.00021917,2]
[341659058,1731068832721,-500.0,0.00021917,2]
[341659059,1731068832745,-500.0,0.00021917,2]
[341659060,1731068832781,-500.0,0.00021917,2]
[341659061,1731068832812,-500.0,0.00021917,2]
[341659062,1731068832838,-308.09432832,0.00021917,2]
[341659063,1731068832862,-500.0,0.00021917,2]
[341659064,1731068832885,-500.0,0.00021917,2]
[341659065,1731068833073,-500.0,0.00021917,2]
[341659066,1731068833098,-500.0,0.00021917,2]
[341659067,1731068833119,-500.0,0.00021917,2]
[341659068,1731068833142,-500.0,0.00021917,2]
[341659069,1731068833168,-500.0,0.00021917,2]
[341659070,1731068833189,-500.0,0.00021917,2]
[341659071,1731068833209,-500.0,0.00021917,2]
[341659072,1731068833230,-500.0,0.00021917,2]
[341659073,1731068833251,-331.25864673,0.00021917,2]
[341659074,1731068833274,-500.0,0.00021917,2]
[341659075,1731068833298,-500.0,0.00021917,2]
[341659076,1731068833319,-500.0,0.00021917,2]
[341659077,1731068833339,-500.0,0.00021917,2]
[341659078,1731068833360,-500.0,0.00021917,2]
[341659079,1731068833381,-166.6666669,0.00021918,2]
[341659080,1731068833401,-210.020999,0.00022052,2]
[341659081,1731068833421,-538.9370589,0.0002219,2]
[341659082,1731068833442,-500.0,0.0002219,2]
[341659083,1731068833463,-500.0,0.0002219,2]
[341659084,1731068833484,-500.0,0.0002219,2]
[341659085,1731068833504,-500.0,0.0002219,2]
[341659086,1731068833526,-500.0,0.0002219,2]
[341659087,1731068833546,-500.0,0.0002219,2]
[341659088,1731068833567,-500.0,0.0002219,2]
[341659089,1731068833586,-500.0,0.0002219,2]
[341659090,1731068833606,-500.0,0.0002219,2]
[341659091,1731068833627,-500.0,0.0002219,2]
[341659092,1731068833647,-517.14394288,0.0002219,2]
[341659093,1731068833668,-500.0,0.0002219,2]
[341659094,1731068833688,-500.0,0.0002219,2]
[341659095,1731068833711,-158.39432772,0.00022191,2]
[341659096,1731068833731,-500.0,0.00022191,2]
[341659097,1731068833750,-500.0,0.00022191,2]
[341659098,1731068833771,-500.0,0.00022191,2]
[341659099,1731068833793,-500.0,0.00022191,2]
[341659100,1731068833814,-500.0,0.00022191,2]
[341659101,1731068833834,-500.0,0.00022191,2]
[341659102,1731068833856,-500.0,0.00022191,2]